[Event "Titled Tuesday Blitz July 25 Early 2023"]
[White "Harsha Bharathakoti"]
[Black "Marek, Matyas"]
[WhiteFideId "5078776"]
[BlackFideId "335398"]
[WhiteElo "2868"]
[BlackElo "2714"]
[Result "1-0"]
[Round "8"]
[TimeControl "180+2"]
[Date "2023.07.25"]
[WhiteClock "0:00:03"]
[BlackClock "0:00:00"]
[Board "30"]

1. Nf3 {[%clk 0:03:00]}  c5 {[%clk 0:02:59]} 2. e4 {[%clk 0:02:59]}  d6 {[%clk 0:02:58]} 3. d4 {[%clk 0:02:57]}  cxd4 {[%clk 0:02:59]} 4. Nxd4 {[%clk 0:02:58]}  Nf6 {[%clk 0:03:00]} 5. Nc3 {[%clk 0:02:58]}  Nc6 {[%clk 0:03:00]} 6. Bg5 {[%clk 0:02:54]}  e6 {[%clk 0:03:01]} 7. Qd2 {[%clk 0:02:53]}  a6 {[%clk 0:03:01]} 8. O-O-O {[%clk 0:02:52]}  Bd7 {[%clk 0:03:02]} 9. f4 {[%clk 0:02:52]}  b5 {[%clk 0:03:02]} 10. Kb1 {[%clk 0:02:32]}  b4 {[%clk 0:02:58]} 11. Bxf6 {[%clk 0:02:31]}  Qxf6 {[%clk 0:02:23]} 12. Nce2 {[%clk 0:02:27]}  Qd8 {[%clk 0:02:07]} 13. Nxc6 {[%clk 0:02:10]}  Bxc6 {[%clk 0:02:08]} 14. Qxb4 {[%clk 0:01:42]}  Be7 {[%clk 0:01:58]} 15. Nd4 {[%clk 0:01:42]}  Bd7 {[%clk 0:01:39]} 16. f5 {[%clk 0:01:33]}  O-O {[%clk 0:01:36]} 17. fxe6 {[%clk 0:01:33]}  fxe6 {[%clk 0:01:37]} 18. Qd2 {[%clk 0:01:27]}  Qc7 {[%clk 0:01:30]} 19. g3 {[%clk 0:01:24]}  Rab8 {[%clk 0:01:25]} 20. Bh3 {[%clk 0:01:19]}  Bf6 {[%clk 0:01:19]} 21. c3 {[%clk 0:01:05]}  Rfe8 {[%clk 0:01:19]} 22. Rhf1 {[%clk 0:00:56]}  Be5 {[%clk 0:01:17]} 23. Ka1 {[%clk 0:00:54]}  Qa5 {[%clk 0:01:14]} 24. Nf3 {[%clk 0:00:50]}  Rxb2 {[%clk 0:00:43]} 25. Kxb2 {[%clk 0:00:37]}  Bxc3+ {[%clk 0:00:24]} 26. Qxc3 {[%clk 0:00:34]}  Rb8+ {[%clk 0:00:24]} 27. Qb3 {[%clk 0:00:23]}  Rb4 {[%clk 0:00:17]} 28. Nd4 {[%clk 0:00:18]}  Rxb3+ {[%clk 0:00:13]} 29. axb3 {[%clk 0:00:19]}  Qe5 {[%clk 0:00:13]} 30. Rfe1 {[%clk 0:00:19]}  h5 {[%clk 0:00:12]} 31. Rd2 {[%clk 0:00:14]}  a5 {[%clk 0:00:12]} 32. Kc2 {[%clk 0:00:13]}  a4 {[%clk 0:00:12]} 33. bxa4 {[%clk 0:00:12]}  Bxa4+ {[%clk 0:00:11]} 34. Kd3 {[%clk 0:00:12]}  h4 {[%clk 0:00:12]} 35. gxh4 {[%clk 0:00:11]}  Bd7 {[%clk 0:00:10]} 36. Rg1 {[%clk 0:00:08]}  Qf4 {[%clk 0:00:06]} 37. Rdg2 {[%clk 0:00:06]}  Be8 {[%clk 0:00:05]} 38. Rxg7+ {[%clk 0:00:06]}  Kh8 {[%clk 0:00:06]} 39. Bxe6 {[%clk 0:00:02]}  Bb5+ {[%clk 0:00:02]} 40. Nxb5 {[%clk 0:00:01]}  Qf3+ {[%clk 0:00:03]} 41. Kd4 {[%clk 0:00:02]}  Qf2+ {[%clk 0:00:04]} 42. Kd3 {[%clk 0:00:02]}  Qf3+ {[%clk 0:00:04]} 43. Kd2 {[%clk 0:00:03]}  Qf2+ {[%clk 0:00:05]} 44. Kc3 {[%clk 0:00:03]}  Qc5+ {[%clk 0:00:05]} 45. Bc4 {[%clk 0:00:03]}  Qe3+ {[%clk 0:00:05]} 46. Kb4 {[%clk 0:00:04]}  Qd2+ {[%clk 0:00:06]} 47. Kb3 {[%clk 0:00:04]}  Qe3+ {[%clk 0:00:06]} 48. Ka4 {[%clk 0:00:04]}  d5 {[%clk 0:00:03]} 49. Rg8+ {[%clk 0:00:02]}  Kh7 {[%clk 0:00:00]} 50. Bxd5 {[%clk 0:00:03]} 1-0


[Site "https://www.chess.com"]

[Event "Titled Tuesday Blitz July 25 Early 2023"]
[White "Oleksiyenko, Mykhaylo"]
[Black "Kushagra Mohan"]
[WhiteFideId "4152417"]
[BlackFideId "25033638"]
[WhiteElo "2684"]
[BlackElo "2860"]
[Result "0-1"]
[Round "8"]
[TimeControl "180+2"]
[Date "2023.07.25"]
[WhiteClock "0:00:06"]
[BlackClock "0:00:27"]
[Board "31"]

1. e4 {[%clk 0:03:00]}  e5 {[%clk 0:02:51]} 2. Nf3 {[%clk 0:03:01]}  Nc6 {[%clk 0:02:51]} 3. Bb5 {[%clk 0:03:01]}  a6 {[%clk 0:02:52]} 4. Bxc6 {[%clk 0:03:02]}  dxc6 {[%clk 0:02:51]} 5. O-O {[%clk 0:03:03]}  Qf6 {[%clk 0:02:51]} 6. d4 {[%clk 0:03:02]}  exd4 {[%clk 0:02:51]} 7. Bg5 {[%clk 0:03:03]}  Qd6 {[%clk 0:02:51]} 8. Qxd4 {[%clk 0:03:01]}  h6 {[%clk 0:02:49]} 9. Be3 {[%clk 0:02:55]}  Qxd4 {[%clk 0:02:47]} 10. Nxd4 {[%clk 0:02:49]}  Bd7 {[%clk 0:02:47]} 11. Nc3 {[%clk 0:02:44]}  O-O-O {[%clk 0:02:47]} 12. Rad1 {[%clk 0:02:44]}  g5 {[%clk 0:02:43]} 13. Nf5 {[%clk 0:02:37]}  Ne7 {[%clk 0:02:14]} 14. Bd4 {[%clk 0:02:29]}  Rg8 {[%clk 0:02:14]} 15. Bf6 {[%clk 0:02:17]}  Re8 {[%clk 0:02:06]} 16. Bxe7 {[%clk 0:02:02]}  Bxe7 {[%clk 0:02:06]} 17. Nxh6 {[%clk 0:02:02]}  Rg7 {[%clk 0:01:53]} 18. Nf5 {[%clk 0:01:59]}  Bxf5 {[%clk 0:01:48]} 19. exf5 {[%clk 0:02:00]}  Bf6 {[%clk 0:01:48]} 20. Rfe1 {[%clk 0:01:55]}  Rxe1+ {[%clk 0:01:42]} 21. Rxe1 {[%clk 0:01:56]}  Rg8 {[%clk 0:01:42]} 22. Kf1 {[%clk 0:01:28]}  b5 {[%clk 0:01:41]} 23. Nd1 {[%clk 0:01:22]}  Rd8 {[%clk 0:01:40]} 24. Ke2 {[%clk 0:01:22]}  a5 {[%clk 0:01:26]} 25. b3 {[%clk 0:01:21]}  a4 {[%clk 0:01:24]} 26. Ne3 {[%clk 0:01:19]}  a3 {[%clk 0:01:22]} 27. Rd1 {[%clk 0:01:18]}  Re8 {[%clk 0:01:20]} 28. Kf3 {[%clk 0:01:17]}  Be5 {[%clk 0:01:17]} 29. h3 {[%clk 0:01:15]}  Bd6 {[%clk 0:01:12]} 30. Kg4 {[%clk 0:01:08]}  f6 {[%clk 0:01:11]} 31. Kf3 {[%clk 0:01:08]}  Re5 {[%clk 0:01:11]} 32. g4 {[%clk 0:01:03]}  Rc5 {[%clk 0:01:09]} 33. Rd3 {[%clk 0:01:01]}  Kb7 {[%clk 0:01:04]} 34. c3 {[%clk 0:00:59]}  Kb6 {[%clk 0:00:57]} 35. Nc2 {[%clk 0:00:34]}  Re5 {[%clk 0:00:54]} 36. b4 {[%clk 0:00:32]}  c5 {[%clk 0:00:54]} 37. Nxa3 {[%clk 0:00:20]}  cxb4 {[%clk 0:00:52]} 38. cxb4 {[%clk 0:00:20]}  Bxb4 {[%clk 0:00:52]} 39. Nc2 {[%clk 0:00:21]}  Bd6 {[%clk 0:00:51]} 40. Ne3 {[%clk 0:00:19]}  Kc6 {[%clk 0:00:46]} 41. Rc3+ {[%clk 0:00:20]}  Rc5 {[%clk 0:00:46]} 42. Rxc5+ {[%clk 0:00:19]}  Kxc5 {[%clk 0:00:45]} 43. Ke4 {[%clk 0:00:19]}  c6 {[%clk 0:00:44]} 44. Ng2 {[%clk 0:00:18]}  Kb4 {[%clk 0:00:41]} 45. f4 {[%clk 0:00:18]}  c5 {[%clk 0:00:36]} 46. fxg5 {[%clk 0:00:18]}  fxg5 {[%clk 0:00:37]} 47. Kd5 {[%clk 0:00:18]}  Bf8 {[%clk 0:00:36]} 48. h4 {[%clk 0:00:17]}  gxh4 {[%clk 0:00:35]} 49. Nxh4 {[%clk 0:00:18]}  c4 {[%clk 0:00:35]} 50. Ng2 {[%clk 0:00:17]}  Ka3 {[%clk 0:00:34]} 51. Ne3 {[%clk 0:00:16]}  c3 {[%clk 0:00:32]} 52. g5 {[%clk 0:00:16]}  Kxa2 {[%clk 0:00:31]} 53. f6 {[%clk 0:00:16]}  b4 {[%clk 0:00:31]} 54. Kc4 {[%clk 0:00:16]}  b3 {[%clk 0:00:30]} 55. g6 {[%clk 0:00:16]}  c2 {[%clk 0:00:29]} 56. g7 {[%clk 0:00:12]}  c1=Q+ {[%clk 0:00:29]} 57. Kd3 {[%clk 0:00:11]}  Bxg7 {[%clk 0:00:29]} 58. fxg7 {[%clk 0:00:06]}  Qg1 {[%clk 0:00:27]} 0-1


[Site "https://www.chess.com"]

[Event "Titled Tuesday Blitz July 25 Early 2023"]
[White "brm72"]
[Black "Ilamparthi A R"]
[BlackFideId "45015775"]
[WhiteElo "2681"]
[BlackElo "2849"]
[Result "0-1"]
[Round "8"]
[TimeControl "180+2"]
[Date "2023.07.25"]
[WhiteClock "0:00:10"]
[BlackClock "0:00:50"]
[Board "32"]

1. e4 {[%clk 0:03:00]}  c5 {[%clk 0:02:59]} 2. Nf3 {[%clk 0:03:00]}  e6 {[%clk 0:03:00]} 3. d4 {[%clk 0:03:00]}  cxd4 {[%clk 0:03:00]} 4. Nxd4 {[%clk 0:03:01]}  Nf6 {[%clk 0:03:00]} 5. Nc3 {[%clk 0:03:00]}  Nc6 {[%clk 0:03:01]} 6. Nxc6 {[%clk 0:02:58]}  bxc6 {[%clk 0:03:02]} 7. e5 {[%clk 0:02:58]}  Nd5 {[%clk 0:03:02]} 8. Ne4 {[%clk 0:02:56]}  Qc7 {[%clk 0:03:03]} 9. f4 {[%clk 0:02:55]}  Rb8 {[%clk 0:03:03]} 10. c4 {[%clk 0:02:51]}  Bb4+ {[%clk 0:03:03]} 11. Ke2 {[%clk 0:02:51]}  O-O {[%clk 0:03:03]} 12. cxd5 {[%clk 0:02:47]}  cxd5 {[%clk 0:03:04]} 13. Ng5 {[%clk 0:02:44]}  f6 {[%clk 0:02:57]} 14. exf6 {[%clk 0:02:43]}  Rxf6 {[%clk 0:02:57]} 15. Nf3 {[%clk 0:02:44]}  e5 {[%clk 0:01:57]} 16. Qxd5+ {[%clk 0:02:25]}  Kh8 {[%clk 0:01:57]} 17. fxe5 {[%clk 0:02:20]}  Bb7 {[%clk 0:01:31]} 18. Qd4 {[%clk 0:01:41]}  Bc5 {[%clk 0:01:25]} 19. Qc3 {[%clk 0:01:36]}  Rf5 {[%clk 0:01:04]} 20. Bd2 {[%clk 0:01:05]}  Qb6 {[%clk 0:00:52]} 21. Rc1 {[%clk 0:00:55]}  d6 {[%clk 0:00:48]} 22. exd6 {[%clk 0:00:50]}  Qxd6 {[%clk 0:00:48]} 23. Kd1 {[%clk 0:00:45]}  Bb4 {[%clk 0:00:48]} 24. Qxb4 {[%clk 0:00:14]}  Bxf3+ {[%clk 0:00:47]} 25. gxf3 {[%clk 0:00:14]}  Rxb4 {[%clk 0:00:48]} 26. Rc8+ {[%clk 0:00:15]}  Rf8 {[%clk 0:00:48]} 27. Rxf8+ {[%clk 0:00:13]}  Qxf8 {[%clk 0:00:49]} 28. Bxb4 {[%clk 0:00:08]}  Qxf3+ {[%clk 0:00:49]} 29. Kc2 {[%clk 0:00:09]}  Qxh1 {[%clk 0:00:49]} 30. Bd3 {[%clk 0:00:10]}  Qxh2+ {[%clk 0:00:50]} 31. Kb3 {[%clk 0:00:10]}  h5 {[%clk 0:00:50]} 32. Bc3 {[%clk 0:00:10]}  h4 {[%clk 0:00:50]} 0-1


[Site "https://www.chess.com"]

[Event "Titled Tuesday Blitz July 25 Early 2023"]
[White "Kezin, Roman"]
[Black "Martic, Ivan"]
[WhiteFideId "24124621"]
[BlackFideId "929301"]
[WhiteElo "2834"]
[BlackElo "2643"]
[Result "0-1"]
[Round "8"]
[TimeControl "180+2"]
[Date "2023.07.25"]
[WhiteClock "0:00:00"]
[BlackClock "0:00:55"]
[Board "33"]

1. c3 {[%clk 0:02:57]}  g6 {[%clk 0:02:54]} 2. e4 {[%clk 0:02:41]}  e5 {[%clk 0:02:36]} 3. d4 {[%clk 0:02:39]}  Nc6 {[%clk 0:02:32]} 4. Nf3 {[%clk 0:02:13]}  Bg7 {[%clk 0:02:21]} 5. Bg5 {[%clk 0:02:13]}  f6 {[%clk 0:02:13]} 6. Be3 {[%clk 0:02:11]}  d6 {[%clk 0:02:13]} 7. Bc4 {[%clk 0:01:57]}  Nh6 {[%clk 0:02:13]} 8. h3 {[%clk 0:01:51]}  Nf7 {[%clk 0:02:08]} 9. Nbd2 {[%clk 0:01:09]}  Qe7 {[%clk 0:02:04]} 10. Qb3 {[%clk 0:00:40]}  a6 {[%clk 0:02:00]} 11. O-O-O {[%clk 0:00:34]}  Bd7 {[%clk 0:01:53]} 12. Qxb7 {[%clk 0:00:27]}  O-O {[%clk 0:01:51]} 13. dxe5 {[%clk 0:00:25]}  dxe5 {[%clk 0:01:36]} 14. Nb3 {[%clk 0:00:24]}  Kh8 {[%clk 0:01:28]} 15. Qxc7 {[%clk 0:00:22]}  Rfd8 {[%clk 0:01:20]} 16. Nc5 {[%clk 0:00:20]}  Nd4 {[%clk 0:01:16]} 17. cxd4 {[%clk 0:00:14]}  Rac8 {[%clk 0:01:15]} 18. Qa5 {[%clk 0:00:12]}  exd4 {[%clk 0:01:15]} 19. Bxd4 {[%clk 0:00:13]}  Nd6 {[%clk 0:01:12]} 20. Bd5 {[%clk 0:00:08]}  Nb5 {[%clk 0:01:07]} 21. Kb1 {[%clk 0:00:03]}  Nxd4 {[%clk 0:01:06]} 22. Nxd7 {[%clk 0:00:03]}  Nc2 {[%clk 0:01:01]} 23. Nb6 {[%clk 0:00:02]}  Qc7 {[%clk 0:00:57]} 24. Rc1 {[%clk 0:00:00]}  Bh6 {[%clk 0:00:55]} 0-1


[Site "https://www.chess.com"]

[Event "Titled Tuesday Blitz July 25 Early 2023"]
[White "Agibileg, Uurtsaikh"]
[Black "Donchenko, Alexander"]
[WhiteFideId "4901606"]
[BlackFideId "24603295"]
[WhiteElo "2622"]
[BlackElo "2832"]
[Result "1-0"]
[Round "8"]
[TimeControl "180+2"]
[Date "2023.07.25"]
[WhiteClock "0:01:43"]
[BlackClock "0:00:42"]
[Board "34"]

1. d4 {[%clk 0:03:00]}  Nf6 {[%clk 0:02:59]} 2. c4 {[%clk 0:03:00]}  g6 {[%clk 0:03:00]} 3. Nc3 {[%clk 0:03:00]}  Bg7 {[%clk 0:03:01]} 4. e4 {[%clk 0:03:00]}  d6 {[%clk 0:03:01]} 5. Be2 {[%clk 0:03:00]}  O-O {[%clk 0:03:02]} 6. Nf3 {[%clk 0:03:01]}  e5 {[%clk 0:02:59]} 7. O-O {[%clk 0:03:01]}  Bg4 {[%clk 0:02:57]} 8. Be3 {[%clk 0:03:00]}  Bxf3 {[%clk 0:02:52]} 9. Bxf3 {[%clk 0:02:57]}  exd4 {[%clk 0:02:53]} 10. Bxd4 {[%clk 0:02:56]}  Nc6 {[%clk 0:02:53]} 11. Be3 {[%clk 0:02:57]}  Nd7 {[%clk 0:02:53]} 12. Qd2 {[%clk 0:02:54]}  Re8 {[%clk 0:02:52]} 13. Bg5 {[%clk 0:02:49]}  Bf6 {[%clk 0:02:51]} 14. Bxf6 {[%clk 0:02:48]}  Nxf6 {[%clk 0:02:49]} 15. g3 {[%clk 0:02:43]}  Qe7 {[%clk 0:02:47]} 16. Bg2 {[%clk 0:02:42]}  Qe5 {[%clk 0:02:47]} 17. Rad1 {[%clk 0:02:38]}  a6 {[%clk 0:02:45]} 18. Rfe1 {[%clk 0:02:30]}  Rac8 {[%clk 0:02:34]} 19. Nd5 {[%clk 0:02:28]}  Ne7 {[%clk 0:02:20]} 20. f4 {[%clk 0:02:20]}  Qe6 {[%clk 0:02:20]} 21. Bh3 {[%clk 0:02:20]}  Qxh3 {[%clk 0:01:42]} 22. Nxf6+ {[%clk 0:02:20]}  Kg7 {[%clk 0:01:43]} 23. Nxe8+ {[%clk 0:02:12]}  Rxe8 {[%clk 0:01:42]} 24. c5 {[%clk 0:02:12]}  h5 {[%clk 0:01:28]} 25. cxd6 {[%clk 0:02:10]}  cxd6 {[%clk 0:01:28]} 26. Qxd6 {[%clk 0:02:01]}  Nc6 {[%clk 0:01:16]} 27. Qd7 {[%clk 0:01:57]}  Re6 {[%clk 0:01:17]} 28. Rd6 {[%clk 0:01:44]}  Nb8 {[%clk 0:00:47]} 29. Qc8 {[%clk 0:01:44]}  Nc6 {[%clk 0:00:45]} 30. Rxe6 {[%clk 0:01:43]}  fxe6 {[%clk 0:00:42]} 31. Qxb7+ {[%clk 0:01:43]} 1-0


[Site "https://www.chess.com"]

[Event "Titled Tuesday Blitz July 25 Early 2023"]
[White "Sipila, Vilka"]
[Black "Samunenkov, Ihor"]
[WhiteFideId "505455"]
[BlackFideId "14187086"]
[WhiteElo "2620"]
[BlackElo "2800"]
[Result "1/2-1/2"]
[Round "8"]
[TimeControl "180+2"]
[Date "2023.07.25"]
[WhiteClock "0:00:03"]
[BlackClock "0:00:02"]
[Board "35"]

1. Nf3 {[%clk 0:03:00]}  d5 {[%clk 0:02:57]} 2. g3 {[%clk 0:03:00]}  c5 {[%clk 0:02:58]} 3. Bg2 {[%clk 0:03:00]}  Nc6 {[%clk 0:02:59]} 4. O-O {[%clk 0:03:01]}  e5 {[%clk 0:02:59]} 5. c4 {[%clk 0:02:57]}  Nf6 {[%clk 0:02:59]} 6. cxd5 {[%clk 0:02:57]}  Nxd5 {[%clk 0:02:59]} 7. Nc3 {[%clk 0:02:55]}  Be6 {[%clk 0:03:00]} 8. d3 {[%clk 0:02:49]}  Be7 {[%clk 0:02:58]} 9. Nxd5 {[%clk 0:02:45]}  Bxd5 {[%clk 0:02:58]} 10. b3 {[%clk 0:02:46]}  O-O {[%clk 0:02:54]} 11. Bb2 {[%clk 0:02:47]}  f6 {[%clk 0:02:53]} 12. Rc1 {[%clk 0:02:46]}  Rc8 {[%clk 0:02:53]} 13. Nd2 {[%clk 0:02:42]}  Be6 {[%clk 0:02:50]} 14. Qc2 {[%clk 0:02:35]}  Nd4 {[%clk 0:02:44]} 15. Qd1 {[%clk 0:02:28]}  Qd7 {[%clk 0:02:41]} 16. Nc4 {[%clk 0:02:18]}  Rfd8 {[%clk 0:02:38]} 17. Qd2 {[%clk 0:02:16]}  Bh3 {[%clk 0:02:24]} 18. Bxh3 {[%clk 0:02:00]}  Qxh3 {[%clk 0:02:25]} 19. Bxd4 {[%clk 0:02:00]}  exd4 {[%clk 0:02:23]} 20. Qf4 {[%clk 0:01:57]}  Bf8 {[%clk 0:02:04]} 21. Nd2 {[%clk 0:01:54]}  Re8 {[%clk 0:01:57]} 22. Qf3 {[%clk 0:01:53]}  b6 {[%clk 0:01:55]} 23. b4 {[%clk 0:01:50]}  Qe6 {[%clk 0:01:43]} 24. Nb3 {[%clk 0:01:46]}  Qxe2 {[%clk 0:01:39]} 25. Nxd4 {[%clk 0:01:39]}  Qxa2 {[%clk 0:01:31]} 26. Nc6 {[%clk 0:01:23]}  cxb4 {[%clk 0:01:14]} 27. Ra1 {[%clk 0:01:20]}  Qe6 {[%clk 0:01:06]} 28. Nxa7 {[%clk 0:01:20]}  Rc5 {[%clk 0:00:50]} 29. d4 {[%clk 0:01:17]}  Rc3 {[%clk 0:00:49]} 30. Qb7 {[%clk 0:01:15]}  Qc4 {[%clk 0:00:27]} 31. Qxb6 {[%clk 0:01:10]}  Re6 {[%clk 0:00:24]} 32. Qb8 {[%clk 0:01:07]}  Qxd4 {[%clk 0:00:22]} 33. Nb5 {[%clk 0:01:00]}  Qb6 {[%clk 0:00:13]} 34. Qxb6 {[%clk 0:00:54]}  Rxb6 {[%clk 0:00:14]} 35. Nxc3 {[%clk 0:00:54]}  bxc3 {[%clk 0:00:15]} 36. Ra8 {[%clk 0:00:47]}  Kf7 {[%clk 0:00:15]} 37. Rc8 {[%clk 0:00:46]}  Rb3 {[%clk 0:00:11]} 38. Rc1 {[%clk 0:00:42]}  Bb4 {[%clk 0:00:11]} 39. Rb8 {[%clk 0:00:41]}  Rb2 {[%clk 0:00:07]} 40. Rb7+ {[%clk 0:00:40]}  Kg6 {[%clk 0:00:07]} 41. Kg2 {[%clk 0:00:37]}  h5 {[%clk 0:00:06]} 42. h4 {[%clk 0:00:37]}  Bc5 {[%clk 0:00:02]} 43. Rxb2 {[%clk 0:00:18]}  cxb2 {[%clk 0:00:03]} 44. Rb1 {[%clk 0:00:19]}  Bd4 {[%clk 0:00:04]} 45. Kf3 {[%clk 0:00:16]}  Kf5 {[%clk 0:00:04]} 46. Re1 {[%clk 0:00:13]}  g5 {[%clk 0:00:03]} 47. hxg5 {[%clk 0:00:11]}  fxg5 {[%clk 0:00:04]} 48. g4+ {[%clk 0:00:07]}  hxg4+ {[%clk 0:00:04]} 49. Kg3 {[%clk 0:00:07]}  Be5+ {[%clk 0:00:04]} 50. Kg2 {[%clk 0:00:07]}  Bf4 {[%clk 0:00:03]} 51. Rb1 {[%clk 0:00:02]}  Bc1 {[%clk 0:00:03]} 52. Kg3 {[%clk 0:00:02]}  Bf4+ {[%clk 0:00:03]} 53. Kg2 {[%clk 0:00:03]}  Bc1 {[%clk 0:00:04]} 54. Kg3 {[%clk 0:00:03]}  Bf4+ {[%clk 0:00:02]} 55. Kg2 {[%clk 0:00:03]} 1/2-1/2


[Site "https://www.chess.com"]

[Event "Titled Tuesday Blitz July 25 Early 2023"]
[White "Kantor, Gergely"]
[Black "Yaran, Siar"]
[WhiteFideId "751499"]
[BlackFideId "6323006"]
[WhiteElo "2795"]
[BlackElo "2621"]
[Result "0-1"]
[Round "8"]
[TimeControl "180+2"]
[Date "2023.07.25"]
[WhiteClock "0:00:00"]
[BlackClock "0:00:06"]
[Board "36"]

1. e4 {[%clk 0:02:55]}  e5 {[%clk 0:03:00]} 2. Nf3 {[%clk 0:02:55]}  Nc6 {[%clk 0:03:00]} 3. Bc4 {[%clk 0:02:55]}  Bc5 {[%clk 0:03:01]} 4. c3 {[%clk 0:02:55]}  Nf6 {[%clk 0:03:01]} 5. d3 {[%clk 0:02:55]}  a6 {[%clk 0:03:01]} 6. a4 {[%clk 0:02:54]}  Ba7 {[%clk 0:03:02]} 7. O-O {[%clk 0:02:54]}  d6 {[%clk 0:03:02]} 8. Re1 {[%clk 0:02:54]}  h6 {[%clk 0:02:59]} 9. Nbd2 {[%clk 0:02:54]}  O-O {[%clk 0:02:55]} 10. h3 {[%clk 0:02:50]}  Be6 {[%clk 0:02:49]} 11. Bxe6 {[%clk 0:02:49]}  fxe6 {[%clk 0:02:50]} 12. b4 {[%clk 0:02:48]}  Ne7 {[%clk 0:02:48]} 13. Nf1 {[%clk 0:02:47]}  Nh5 {[%clk 0:02:43]} 14. Ra2 {[%clk 0:02:44]}  Ng6 {[%clk 0:02:30]} 15. d4 {[%clk 0:02:42]}  Qf6 {[%clk 0:02:20]} 16. N1h2 {[%clk 0:02:41]}  exd4 {[%clk 0:02:09]} 17. cxd4 {[%clk 0:02:34]}  Ngf4 {[%clk 0:02:02]} 18. Kh1 {[%clk 0:02:13]}  Rf7 {[%clk 0:01:48]} 19. g4 {[%clk 0:02:06]}  Nxh3 {[%clk 0:01:44]} 20. gxh5 {[%clk 0:02:06]}  Raf8 {[%clk 0:01:39]} 21. Be3 {[%clk 0:02:04]}  d5 {[%clk 0:01:22]} 22. Ne5 {[%clk 0:01:55]}  dxe4 {[%clk 0:00:52]} 23. Nxf7 {[%clk 0:01:51]}  Qxf7 {[%clk 0:00:49]} 24. Qg4 {[%clk 0:01:48]}  e5 {[%clk 0:00:49]} 25. Bxh6 {[%clk 0:01:17]}  Kh8 {[%clk 0:00:21]} 26. Bxg7+ {[%clk 0:01:04]}  Qxg7 {[%clk 0:00:21]} 27. Qxh3 {[%clk 0:01:02]}  Bxd4 {[%clk 0:00:17]} 28. Qg2 {[%clk 0:00:51]}  Qf7 {[%clk 0:00:17]} 29. Rae2 {[%clk 0:00:51]}  Bxf2 {[%clk 0:00:16]} 30. Rxf2 {[%clk 0:00:49]}  Qxf2 {[%clk 0:00:16]} 31. Qxf2 {[%clk 0:00:49]}  Rxf2 {[%clk 0:00:16]} 32. Rxe4 {[%clk 0:00:50]}  Rf5 {[%clk 0:00:16]} 33. h6 {[%clk 0:00:47]}  Rh5 {[%clk 0:00:10]} 34. Kg2 {[%clk 0:00:47]}  Rxh6 {[%clk 0:00:11]} 35. Rxe5 {[%clk 0:00:47]}  Rh4 {[%clk 0:00:11]} 36. Re8+ {[%clk 0:00:18]}  Kg7 {[%clk 0:00:11]} 37. Re7+ {[%clk 0:00:18]}  Kf6 {[%clk 0:00:12]} 38. Rxc7 {[%clk 0:00:17]}  Rxb4 {[%clk 0:00:12]} 39. a5 {[%clk 0:00:16]}  Rb5 {[%clk 0:00:13]} 40. Ng4+ {[%clk 0:00:15]}  Ke6 {[%clk 0:00:12]} 41. Kf3 {[%clk 0:00:14]}  Kd6 {[%clk 0:00:12]} 42. Rh7 {[%clk 0:00:14]}  Rxa5 {[%clk 0:00:12]} 43. Rxb7 {[%clk 0:00:14]}  Rb5 {[%clk 0:00:10]} 44. Ra7 {[%clk 0:00:14]}  a5 {[%clk 0:00:10]} 45. Ne3 {[%clk 0:00:14]}  Kc6 {[%clk 0:00:09]} 46. Ke4 {[%clk 0:00:14]}  Kb6 {[%clk 0:00:09]} 47. Rh7 {[%clk 0:00:14]}  Rb1 {[%clk 0:00:08]} 48. Nc4+ {[%clk 0:00:10]}  Kc5 {[%clk 0:00:07]} 49. Rc7+ {[%clk 0:00:09]}  Kb4 {[%clk 0:00:02]} 50. Rb7+ {[%clk 0:00:10]}  Kxc4 {[%clk 0:00:02]} 51. Rxb1 {[%clk 0:00:10]}  a4 {[%clk 0:00:03]} 52. Rb8 {[%clk 0:00:04]}  a3 {[%clk 0:00:03]} 53. Ra8 {[%clk 0:00:04]}  Kb3 {[%clk 0:00:03]} 54. Kd3 {[%clk 0:00:05]}  Kb2 {[%clk 0:00:04]} 55. Rb8+ {[%clk 0:00:04]}  Kc1 {[%clk 0:00:04]} 56. Rh8 {[%clk 0:00:02]}  a2 {[%clk 0:00:03]} 57. Rh1+ {[%clk 0:00:02]}  Kb2 {[%clk 0:00:03]} 58. Rh2+ {[%clk 0:00:03]}  Kb1 {[%clk 0:00:04]} 59. Kc3 {[%clk 0:00:03]}  a1=Q+ {[%clk 0:00:04]} 60. Kb3 {[%clk 0:00:04]}  Qa8 {[%clk 0:00:05]} 61. Rd2 {[%clk 0:00:03]}  Qb7+ {[%clk 0:00:05]} 62. Kc3 {[%clk 0:00:04]}  Qc6+ {[%clk 0:00:06]} 63. Kd3 {[%clk 0:00:04]}  Kc1 {[%clk 0:00:05]} 64. Re2 {[%clk 0:00:04]}  Qd5+ {[%clk 0:00:06]} 65. Ke3 {[%clk 0:00:04]}  Kd1 {[%clk 0:00:06]} 66. Rh2 {[%clk 0:00:00]}  Qe5+ {[%clk 0:00:06]} 0-1


[Site "https://www.chess.com"]

[Event "Titled Tuesday Blitz July 25 Early 2023"]
[White "Ezat, Mohamed"]
[Black "Nagy, Gabor"]
[WhiteFideId "10600906"]
[BlackFideId "737119"]
[WhiteElo "2601"]
[BlackElo "2786"]
[Result "0-1"]
[Round "8"]
[TimeControl "180+2"]
[Date "2023.07.25"]
[WhiteClock "0:00:06"]
[BlackClock "0:01:42"]
[Board "38"]

1. d4 {[%clk 0:03:00]}  g6 {[%clk 0:02:58]} 2. c4 {[%clk 0:03:00]}  Bg7 {[%clk 0:02:59]} 3. e4 {[%clk 0:03:00]}  d6 {[%clk 0:02:58]} 4. Nc3 {[%clk 0:03:00]}  Nc6 {[%clk 0:02:59]} 5. Be3 {[%clk 0:02:58]}  Nf6 {[%clk 0:02:57]} 6. d5 {[%clk 0:02:53]}  Ne5 {[%clk 0:02:57]} 7. h3 {[%clk 0:02:53]}  O-O {[%clk 0:02:56]} 8. Be2 {[%clk 0:02:53]}  c6 {[%clk 0:02:55]} 9. Nf3 {[%clk 0:02:50]}  Nxf3+ {[%clk 0:02:52]} 10. Bxf3 {[%clk 0:02:50]}  Nd7 {[%clk 0:02:47]} 11. O-O {[%clk 0:02:39]}  cxd5 {[%clk 0:02:45]} 12. cxd5 {[%clk 0:02:38]}  Qa5 {[%clk 0:02:39]} 13. Be2 {[%clk 0:02:32]}  a6 {[%clk 0:02:37]} 14. a3 {[%clk 0:02:29]}  b5 {[%clk 0:02:35]} 15. Bd4 {[%clk 0:02:18]}  Bb7 {[%clk 0:02:31]} 16. Bxg7 {[%clk 0:02:12]}  Kxg7 {[%clk 0:02:32]} 17. b4 {[%clk 0:02:07]}  Qb6 {[%clk 0:02:30]} 18. a4 {[%clk 0:02:00]}  Rfc8 {[%clk 0:02:30]} 19. Qd2 {[%clk 0:01:59]}  bxa4 {[%clk 0:02:14]} 20. Nxa4 {[%clk 0:01:50]}  Qd8 {[%clk 0:02:14]} 21. Rfc1 {[%clk 0:01:35]}  Nf6 {[%clk 0:02:06]} 22. Qd4 {[%clk 0:01:28]}  Rxc1+ {[%clk 0:02:04]} 23. Rxc1 {[%clk 0:01:26]}  Rc8 {[%clk 0:02:05]} 24. Rc3 {[%clk 0:01:14]}  h5 {[%clk 0:01:58]} 25. g4 {[%clk 0:00:44]}  hxg4 {[%clk 0:01:55]} 26. hxg4 {[%clk 0:00:42]}  g5 {[%clk 0:01:55]} 27. Bf3 {[%clk 0:00:25]}  Rxc3 {[%clk 0:01:52]} 28. Nxc3 {[%clk 0:00:23]}  Qc7 {[%clk 0:01:51]} 29. Kg2 {[%clk 0:00:21]}  Bc8 {[%clk 0:01:50]} 30. Qe3 {[%clk 0:00:17]}  Nh7 {[%clk 0:01:47]} 31. Ne2 {[%clk 0:00:16]}  f6 {[%clk 0:01:47]} 32. Ng3 {[%clk 0:00:16]}  Nf8 {[%clk 0:01:47]} 33. Nh5+ {[%clk 0:00:14]}  Kf7 {[%clk 0:01:48]} 34. e5 {[%clk 0:00:13]}  dxe5 {[%clk 0:01:45]} 35. Qd3 {[%clk 0:00:12]}  Ng6 {[%clk 0:01:45]} 36. Be4 {[%clk 0:00:09]}  Nh4+ {[%clk 0:01:44]} 37. Kg3 {[%clk 0:00:09]}  Qc1 {[%clk 0:01:44]} 38. d6 {[%clk 0:00:06]}  Qg1+ {[%clk 0:01:43]} 39. Kh3 {[%clk 0:00:06]}  Bxg4# {[%clk 0:01:42]} 0-1


[Site "https://www.chess.com"]